[Event "*** Titled Tuesday Blitz"]
[Site "Chess.com"]
[Date "2018.12.04"]
[Round "1"]
[White "aa175"]
[Black "jocmil"]
[Result "0-1"]
[WhiteElo "1920"]
[BlackElo "2480"]
[TimeControl "180+2"]
[EndTime "13:09:31 PST"]
[Termination "jocmil won by checkmate"]

1. d4 {[%clk 0:02:56.2]} 1... Nf6 {[%clk 0:02:59.5]} 2. c4 {[%clk 0:02:54.9]}
2... g6 {[%clk 0:02:59.9]} 3. f3 {[%clk 0:02:54.9]} 3... Bg7 {[%clk 0:03:00.8]}
4. e4 {[%clk 0:02:55.2]} 4... O-O {[%clk 0:03:02.1]} 5. Nc3 {[%clk 0:02:55.9]}
5... d6 {[%clk 0:03:03.2]} 6. Be3 {[%clk 0:02:56.3]} 6... c5 {[%clk 0:03:04.3]}
7. Nge2 {[%clk 0:02:56.1]} 7... Nc6 {[%clk 0:03:04.9]} 8. g4 {[%clk 0:02:55]}
8... cxd4 {[%clk 0:02:54.2]} 9. Nxd4 {[%clk 0:02:56.9]} 9... Bd7 {[%clk
0:02:55]} 10. h4 {[%clk 0:02:56.4]} 10... h5 {[%clk 0:02:53.5]} 11. g5 {[%clk
0:02:53.4]} 11... Ne8 {[%clk 0:02:49.5]} 12. Nxc6 {[%clk 0:02:54.2]} 12... bxc6
{[%clk 0:02:40.2]} 13. Bd4 {[%clk 0:02:56.1]} 13... Qa5 {[%clk 0:02:36.7]} 14.
Bxg7 {[%clk 0:02:52.8]} 14... Nxg7 {[%clk 0:02:38.6]} 15. Bg2 {[%clk 0:02:53.5]}
15... Ne6 {[%clk 0:02:38.6]} 16. Qd2 {[%clk 0:02:53.3]} 16... Qe5 {[%clk
0:02:35.4]} 17. Ne2 {[%clk 0:02:52.1]} 17... Rab8 {[%clk 0:02:35.7]} 18. O-O-O
{[%clk 0:02:50.8]} 18... Qc5 {[%clk 0:02:19]} 19. Qc3 {[%clk 0:02:48.9]} 19...
Qf2 {[%clk 0:02:17.6]} 20. Bh3 {[%clk 0:02:02.1]} 20... Qxe2 {[%clk 0:01:46.1]}
21. Rd2 {[%clk 0:01:58.5]} 21... Qxd2+ {[%clk 0:00:56]} 22. Qxd2 {[%clk
0:01:55.1]} 22... Nc5 {[%clk 0:00:52.8]} 23. Bxd7 {[%clk 0:01:55.3]} 23... Nxd7
{[%clk 0:00:53]} 24. f4 {[%clk 0:01:54.7]} 24... Nc5 {[%clk 0:00:53.5]} 25. Re1
{[%clk 0:01:55]} 25... Rb4 {[%clk 0:00:52.3]} 26. Qc3 {[%clk 0:01:41.9]} 26...
Rfb8 {[%clk 0:00:52.2]} 27. Re2 {[%clk 0:01:25.1]} 27... a5 {[%clk 0:00:52.2]}
28. f5 {[%clk 0:01:08.5]} 28... Na4 {[%clk 0:00:50.8]} 29. Qc2 {[%clk
0:00:34.6]} 29... Nxb2 {[%clk 0:00:46.4]} 30. Qxb2 {[%clk 0:00:35.7]} 30...
Rxc4+ {[%clk 0:00:34.7]} 31. Qc2 {[%clk 0:00:13.4]} 31... Rxc2+ {[%clk
0:00:35.4]} 32. Rxc2 {[%clk 0:00:15.3]} 32... c5 {[%clk 0:00:36]} 33. f6 {[%clk
0:00:12.5]} 33... Kf8 {[%clk 0:00:36.2]} 34. e5 {[%clk 0:00:11.4]} 34... Rb6
{[%clk 0:00:14]} 35. exd6 {[%clk 0:00:04.1]} 35... Rxd6 {[%clk 0:00:08.4]} 36.
fxe7+ {[%clk 0:00:03]} 36... Kxe7 {[%clk 0:00:10.3]} 37. Rc4 {[%clk 0:00:04.5]}
37... Rc6 {[%clk 0:00:09.8]} 38. Re4+ {[%clk 0:00:04.5]} 38... Kd6 {[%clk
0:00:10.6]} 39. Rf4 {[%clk 0:00:05.4]} 39... Ke7 {[%clk 0:00:10.3]} 40. Re4+
{[%clk 0:00:06.4]} 40... Re6 {[%clk 0:00:04.3]} 41. Kc2 {[%clk 0:00:08.1]} 41...
Rxe4 {[%clk 0:00:05.1]} 42. Kc3 {[%clk 0:00:10]} 42... Rb4 {[%clk 0:00:06]} 43.
Kd3 {[%clk 0:00:11.9]} 43... Ke6 {[%clk 0:00:06.9]} 44. Kd2 {[%clk 0:00:13.8]}
44... Kd5 {[%clk 0:00:08.3]} 45. a3 {[%clk 0:00:15.7]} 45... c4 {[%clk
0:00:09.6]} 46. Kc3 {[%clk 0:00:17.6]} 46... Rb3+ {[%clk 0:00:10.8]} 47. Kc2
{[%clk 0:00:18.8]} 47... Rxa3 {[%clk 0:00:12.7]} 48. Kb2 {[%clk 0:00:20.6]}
48... Rb3+ {[%clk 0:00:14.3]} 49. Kc1 {[%clk 0:00:22.3]} 49... a4 {[%clk
0:00:16.1]} 50. Kc2 {[%clk 0:00:24.2]} 50... Kd4 {[%clk 0:00:17.7]} 51. Kc1
{[%clk 0:00:26.1]} 51... c3 {[%clk 0:00:19.2]} 52. Kc2 {[%clk 0:00:28]} 52...
Kc4 {[%clk 0:00:20.7]} 53. Kd1 {[%clk 0:00:29.2]} 53... Kd3 {[%clk 0:00:22.6]}
54. Ke1 {[%clk 0:00:30.3]} 54... a3 {[%clk 0:00:23.8]} 55. Kf2 {[%clk
0:00:32.2]} 55... a2 {[%clk 0:00:25.3]} 56. Kf3 {[%clk 0:00:34.1]} 56... a1=Q
{[%clk 0:00:26.2]} 57. Kf4 {[%clk 0:00:36]} 57... Qf1+ {[%clk 0:00:27.1]} 58.
Ke5 {[%clk 0:00:37.9]} 58... Qf5+ {[%clk 0:00:27.4]} 59. Kd6 {[%clk 0:00:39.1]}
59... Qe6+ {[%clk 0:00:28.8]} 60. Kc7 {[%clk 0:00:39.4]} 60... c2 {[%clk
0:00:29.6]} 61. Kd8 {[%clk 0:00:38.7]} 61... Rb8+ {[%clk 0:00:30.1]} 62. Kc7
{[%clk 0:00:39.9]} 62... c1=Q+ {[%clk 0:00:31.6]} 63. Kxb8 {[%clk 0:00:41.2]}
63... Qec8+ {[%clk 0:00:32.6]} 64. Ka7 {[%clk 0:00:41.2]} 64... Q1c5# {[%clk
0:00:34]} 0-1

[Event "*** Titled Tuesday Blitz"]
[Site "Chess.com"]
[Date "2018.12.04"]
[Round "1"]
[White "Anar_Aliakbarov"]
[Black "WPWPWP-2015"]
[Result "0-1"]
[WhiteElo "2570"]
[BlackElo "2264"]
[TimeControl "180+2"]
[EndTime "13:09:44 PST"]
[Termination "WPWPWP-2015 won by resignation"]

1. d4 {[%clk 0:03:01.9]} 1... d5 {[%clk 0:02:56.5]} 2. c4 {[%clk 0:03:00.7]}
2... c6 {[%clk 0:02:57]} 3. Nf3 {[%clk 0:03:01.1]} 3... Nf6 {[%clk 0:02:57.8]}
4. e3 {[%clk 0:03:01.5]} 4... e6 {[%clk 0:02:58.1]} 5. b3 {[%clk 0:02:59.2]}
5... Nbd7 {[%clk 0:02:58.2]} 6. Bb2 {[%clk 0:02:58.7]} 6... Bd6 {[%clk
0:02:58.4]} 7. Nbd2 {[%clk 0:02:50.1]} 7... O-O {[%clk 0:02:56.5]} 8. Bd3 {[%clk
0:02:51.2]} 8... Qc7 {[%clk 0:02:54.8]} 9. c5 {[%clk 0:02:29.9]} 9... Be7 {[%clk
0:02:54.5]} 10. b4 {[%clk 0:02:31.3]} 10... a5 {[%clk 0:02:51.5]} 11. a3 {[%clk
0:02:31]} 11... b6 {[%clk 0:02:46]} 12. O-O {[%clk 0:02:27.5]} 12... g6 {[%clk
0:02:44.4]} 13. Qc2 {[%clk 0:02:16.1]} 13... Ba6 {[%clk 0:02:44.4]} 14. Bxa6
{[%clk 0:01:54.5]} 14... Rxa6 {[%clk 0:02:44.6]} 15. Rfc1 {[%clk 0:01:54.1]}
15... Rfa8 {[%clk 0:02:38.4]} 16. b5 {[%clk 0:01:31.7]} 16... cxb5 {[%clk
0:02:21.4]} 17. c6 {[%clk 0:01:31.2]} 17... Nf8 {[%clk 0:02:21.3]} 18. e4 {[%clk
0:01:21.6]} 18... b4 {[%clk 0:02:17.9]} 19. a4 {[%clk 0:01:19.3]} 19... Rd8
{[%clk 0:02:05.5]} 20. Qd3 {[%clk 0:01:18.7]} 20... Raa8 {[%clk 0:02:04.5]} 21.
Rc2 {[%clk 0:01:20]} 21... h5 {[%clk 0:01:43.1]} 22. Rac1 {[%clk 0:01:18.5]}
22... N8h7 {[%clk 0:01:41.4]} 23. Ne5 {[%clk 0:01:11.1]} 23... Bf8 {[%clk
0:01:22.9]} 24. f3 {[%clk 0:01:01.3]} 24... Bh6 {[%clk 0:01:22.8]} 25. Re1
{[%clk 0:00:46.9]} 25... dxe4 {[%clk 0:01:09.7]} 26. Nxe4 {[%clk 0:00:38.3]}
26... Nxe4 {[%clk 0:00:55.7]} 27. Qxe4 {[%clk 0:00:37.7]} 27... Nf6 {[%clk
0:00:56]} 28. Qe2 {[%clk 0:00:34.5]} 28... Nd5 {[%clk 0:00:50.3]} 29. Qe4 {[%clk
0:00:23.6]} 29... Rac8 {[%clk 0:00:44.8]} 30. g3 {[%clk 0:00:24]} 30... Bg7
{[%clk 0:00:44.7]} 31. Rec1 {[%clk 0:00:17.9]} 31... Qe7 {[%clk 0:00:43.1]} 32.
f4 {[%clk 0:00:16.2]} 32... Rc7 {[%clk 0:00:42.5]} 33. Qe2 {[%clk 0:00:11]}
33... Nf6 {[%clk 0:00:38.8]} 34. Qb5 {[%clk 0:00:10.7]} 34... Nd5 {[%clk
0:00:36.4]} 35. Kf2 {[%clk 0:00:08.5]} 35... Qf6 {[%clk 0:00:29.9]} 36. Nd7
{[%clk 0:00:08.5]} 36... Qf5 {[%clk 0:00:30.5]} 37. Nxb6 {[%clk 0:00:09.3]}
37... Qe4 {[%clk 0:00:17.1]} 38. Nxd5 {[%clk 0:00:09.4]} 38... exd5 {[%clk
0:00:18]} 39. Qe2 {[%clk 0:00:10.4]} 39... Bxd4+ {[%clk 0:00:18.3]} 40. Bxd4
{[%clk 0:00:10.7]} 40... Qxd4+ {[%clk 0:00:19.5]} 41. Qe3 {[%clk 0:00:11.3]}
41... Qf6 {[%clk 0:00:19.1]} 42. Qb6 {[%clk 0:00:11.8]} 42... Rdc8 {[%clk
0:00:19.6]} 43. Qxa5 {[%clk 0:00:12.8]} 43... b3 {[%clk 0:00:20.4]} 44. Re2
{[%clk 0:00:11.5]} 44... Rxc6 {[%clk 0:00:20.7]} 45. Rce1 {[%clk 0:00:11.2]}
45... Rc2 {[%clk 0:00:20.7]} 46. Qb4 {[%clk 0:00:11.2]} 46... b2 {[%clk
0:00:20.5]} 47. Kf1 {[%clk 0:00:10.6]} 47... Kg7 {[%clk 0:00:20.2]} 48. Rxc2
{[%clk 0:00:10.7]} 48... Rxc2 {[%clk 0:00:20.3]} 49. a5 {[%clk 0:00:11.5]} 49...
Qf5 {[%clk 0:00:19.8]} 50. Qd4+ {[%clk 0:00:12]} 50... Kh7 {[%clk 0:00:19.8]}
51. Kg1 {[%clk 0:00:12]} 51... Qh3 {[%clk 0:00:18]} 52. Qf2 {[%clk 0:00:07.1]}
52... Rxf2 {[%clk 0:00:18.1]} 53. Kxf2 {[%clk 0:00:09]} 53... Qxh2+ {[%clk
0:00:19.2]} 54. Kf3 {[%clk 0:00:09.6]} 54... Qd2 {[%clk 0:00:19.2]} 55. Rb1
{[%clk 0:00:09.9]} 55... Qxa5 {[%clk 0:00:20]} 56. Rxb2 {[%clk 0:00:10.6]} 56...
Qc3+ {[%clk 0:00:21.1]} 0-1

[Event "*** Titled Tuesday Blitz"]
[Site "Chess.com"]
[Date "2018.12.04"]
[Round "1"]
[White "Slovak_fighter2000"]
[Black "Bigfish1995"]
[Result "0-1"]
[WhiteElo "2472"]
[BlackElo "3016"]
[TimeControl "180+2"]
[EndTime "13:09:59 PST"]
[Termination "Bigfish1995 won by resignation"]

1. d4 {[%clk 0:03:01.9]} 1... Nf6 {[%clk 0:03:00.8]} 2. Nf3 {[%clk 0:03:01.2]}
2... g6 {[%clk 0:03:02]} 3. Bf4 {[%clk 0:02:58.3]} 3... Bg7 {[%clk 0:03:02.6]}
4. e3 {[%clk 0:02:59.3]} 4... O-O {[%clk 0:03:02.9]} 5. h3 {[%clk 0:03:00.4]}
5... b6 {[%clk 0:03:03.3]} 6. Be2 {[%clk 0:03:01.5]} 6... Bb7 {[%clk 0:03:04.3]}
7. O-O {[%clk 0:03:03]} 7... c5 {[%clk 0:03:05.3]} 8. c3 {[%clk 0:03:04]} 8...
d6 {[%clk 0:03:05.2]} 9. a4 {[%clk 0:03:04.9]} 9... a6 {[%clk 0:03:05.9]} 10.
Nbd2 {[%clk 0:03:05.9]} 10... Nbd7 {[%clk 0:03:06.6]} 11. Qb3 {[%clk 0:03:04.3]}
11... Ra7 {[%clk 0:03:06.7]} 12. Rfc1 {[%clk 0:03:03.1]} 12... Bd5 {[%clk
0:03:02.8]} 13. Qd1 {[%clk 0:03:03.5]} 13... Qa8 {[%clk 0:03:02.8]} 14. Bc4
{[%clk 0:02:56.9]} 14... Rb8 {[%clk 0:02:56.4]} 15. Bxd5 {[%clk 0:02:53.3]}
15... Nxd5 {[%clk 0:02:57.3]} 16. Bg5 {[%clk 0:02:54.7]} 16... h6 {[%clk
0:02:56.8]} 17. Bh4 {[%clk 0:02:55.9]} 17... N7f6 {[%clk 0:02:49.1]} 18. Bxf6
{[%clk 0:02:53]} 18... Nxf6 {[%clk 0:02:46.1]} 19. b4 {[%clk 0:02:43.4]} 19...
Nd5 {[%clk 0:02:39]} 20. Qb3 {[%clk 0:02:42]} 20... Rc7 {[%clk 0:02:30.2]} 21.
Rab1 {[%clk 0:02:32.4]} 21... Rbc8 {[%clk 0:02:27.8]} 22. bxc5 {[%clk
0:02:29.2]} 22... bxc5 {[%clk 0:02:27.9]} 23. Qb2 {[%clk 0:01:52.4]} 23... cxd4
{[%clk 0:02:23.9]} 24. cxd4 {[%clk 0:01:46.8]} 24... Nc3 {[%clk 0:02:24.8]} 25.
Rxc3 {[%clk 0:01:32.8]} 25... Rxc3 {[%clk 0:02:25.2]} 26. Qb6 {[%clk 0:01:14.6]}
26... Rc1+ {[%clk 0:02:23.8]} 27. Rxc1 {[%clk 0:01:14.9]} 27... Rxc1+ {[%clk
0:02:24.4]} 28. Kh2 {[%clk 0:01:16.1]} 28... Bf6 {[%clk 0:02:24.3]} 29. e4
{[%clk 0:01:12.7]} 29... Rc6 {[%clk 0:02:12]} 30. Qb3 {[%clk 0:01:10.2]} 30...
e6 {[%clk 0:02:07.7]} 31. Nc4 {[%clk 0:00:51.8]} 31... Qc8 {[%clk 0:02:07.8]}
32. Ne3 {[%clk 0:00:49.9]} 32... Qc7 {[%clk 0:02:04.9]} 33. g3 {[%clk
0:00:48.3]} 33... Rc1 {[%clk 0:01:58.5]} 34. Ng4 {[%clk 0:00:41.7]} 34... Bg7
{[%clk 0:01:55.9]} 35. Qe3 {[%clk 0:00:38.6]} 35... Qc3 {[%clk 0:01:56]} 36. Qf4
{[%clk 0:00:31.3]} 36... g5 {[%clk 0:01:23.4]} 37. Nf6+ {[%clk 0:00:23.7]} 37...
Bxf6 {[%clk 0:00:53.4]} 38. Qxf6 {[%clk 0:00:24]} 38... Qa1 {[%clk 0:00:41.1]}
39. g4 {[%clk 0:00:18.1]} 39... Rh1+ {[%clk 0:00:38.4]} 40. Kg3 {[%clk
0:00:19.4]} 40... Qc1 {[%clk 0:00:13.8]} 41. Qd8+ {[%clk 0:00:12]} 41... Kg7
{[%clk 0:00:13.5]} 42. Qxd6 {[%clk 0:00:11.9]} 42... Qf4+ {[%clk 0:00:13.7]} 43.
Qxf4 {[%clk 0:00:12.4]} 43... gxf4+ {[%clk 0:00:15.6]} 44. Kxf4 {[%clk
0:00:13.8]} 44... Ra1 {[%clk 0:00:16.2]} 45. Ke5 {[%clk 0:00:10]} 45... Rxa4
{[%clk 0:00:17.1]} 46. d5 {[%clk 0:00:11]} 46... exd5 {[%clk 0:00:16.2]} 47.
exd5 {[%clk 0:00:12.9]} 47... Kf8 {[%clk 0:00:16.7]} 48. Kd6 {[%clk 0:00:11.3]}
48... Rf4 {[%clk 0:00:17.6]} 49. Ne5 {[%clk 0:00:11.3]} 49... a5 {[%clk
0:00:18.8]} 50. Kc7 {[%clk 0:00:04.8]} 50... a4 {[%clk 0:00:18]} 51. d6 {[%clk
0:00:05.6]} 51... a3 {[%clk 0:00:18.7]} 52. Nc6 {[%clk 0:00:05.8]} 52... Rxf2
{[%clk 0:00:14.9]} 53. d7 {[%clk 0:00:06.4]} 53... Rd2 {[%clk 0:00:15.9]} 54.
Nb4 {[%clk 0:00:07.2]} 54... Ke7 {[%clk 0:00:16.6]} 55. Nc6+ {[%clk 0:00:07.7]}
55... Ke6 {[%clk 0:00:17.7]} 56. d8=Q {[%clk 0:00:08.5]} 56... Rxd8 {[%clk
0:00:18.3]} 57. Nxd8+ {[%clk 0:00:07.7]} 57... Kf6 {[%clk 0:00:19.1]} 58. Nc6
{[%clk 0:00:07.2]} 58... a2 {[%clk 0:00:20.2]} 0-1

[Event "*** Titled Tuesday Blitz"]
[Site "Chess.com"]
[Date "2018.12.04"]
[Round "1"]
[White "DiogenesSinopeus"]
[Black "David_Paravyan"]
[Result "0-1"]
[WhiteElo "2431"]
[BlackElo "2831"]
[TimeControl "180+2"]
[EndTime "13:10:05 PST"]
[Termination "David_Paravyan won by resignation"]

1. d4 {[%clk 0:03:01.9]} 1... d5 {[%clk 0:02:56.1]} 2. c4 {[%clk 0:03:02.7]}
2... c6 {[%clk 0:02:57.1]} 3. Nc3 {[%clk 0:03:03.3]} 3... Nf6 {[%clk 0:02:57.9]}
4. e3 {[%clk 0:03:04.3]} 4... Bf5 {[%clk 0:02:57.5]} 5. cxd5 {[%clk 0:03:01.4]}
5... cxd5 {[%clk 0:02:58.1]} 6. Qb3 {[%clk 0:03:02.8]} 6... Bc8 {[%clk
0:02:58.1]} 7. Bb5+ {[%clk 0:03:01]} 7... Bd7 {[%clk 0:02:50]} 8. Bxd7+ {[%clk
0:02:09.3]} 8... Qxd7 {[%clk 0:02:50]} 9. Nf3 {[%clk 0:02:10.7]} 9... e6 {[%clk
0:02:43.3]} 10. Ne5 {[%clk 0:02:08.7]} 10... Qc8 {[%clk 0:02:43.4]} 11. Bd2
{[%clk 0:02:00.8]} 11... Nc6 {[%clk 0:02:35.3]} 12. Rc1 {[%clk 0:01:57.6]} 12...
Be7 {[%clk 0:02:29.2]} 13. O-O {[%clk 0:01:20.5]} 13... O-O {[%clk 0:02:29.6]}
14. Na4 {[%clk 0:01:05]} 14... Ne4 {[%clk 0:02:27.4]} 15. Rfd1 {[%clk
0:00:42.9]} 15... Rb8 {[%clk 0:02:06.4]} 16. Be1 {[%clk 0:00:41.1]} 16... Nd6
{[%clk 0:01:43.7]} 17. Qd3 {[%clk 0:00:18.3]} 17... Qe8 {[%clk 0:00:34.8]} 18.
Nxc6 {[%clk 0:00:14.9]} 18... bxc6 {[%clk 0:00:36.7]} 19. b3 {[%clk 0:00:16]}
19... Nb5 {[%clk 0:00:35.3]} 20. Ba5 {[%clk 0:00:12.9]} 20... Rc8 {[%clk
0:00:35.8]} 21. Rc2 {[%clk 0:00:09.5]} 21... Bd6 {[%clk 0:00:31.5]} 22. Qd2
{[%clk 0:00:08.8]} 22... e5 {[%clk 0:00:27.5]} 23. Bb4 {[%clk 0:00:09.1]} 23...
Qe7 {[%clk 0:00:17.5]} 24. Bxd6 {[%clk 0:00:09.3]} 24... Nxd6 {[%clk 0:00:19.4]}
25. f3 {[%clk 0:00:08.7]} 25... Rfe8 {[%clk 0:00:19.5]} 26. Rdc1 {[%clk
0:00:08.7]} 26... Nf5 {[%clk 0:00:16]} 27. Nc5 {[%clk 0:00:09.2]} 27... h5
{[%clk 0:00:15.1]} 28. Qf2 {[%clk 0:00:07.6]} 28... g6 {[%clk 0:00:15.7]} 29. h3
{[%clk 0:00:07.3]} 29... h4 {[%clk 0:00:16.4]} 30. Rd2 {[%clk 0:00:06.5]} 30...
Kg7 {[%clk 0:00:16.5]} 31. Rdd1 {[%clk 0:00:07.9]} 31... Qg5 {[%clk 0:00:14.9]}
32. Re1 {[%clk 0:00:08.6]} 32... exd4 {[%clk 0:00:12.1]} 33. exd4 {[%clk
0:00:09.8]} 33... Qf4 {[%clk 0:00:13.6]} 34. Nd7 {[%clk 0:00:08]} 34... Qxd4
{[%clk 0:00:12]} 35. Qxd4+ {[%clk 0:00:08.9]} 35... Nxd4 {[%clk 0:00:13.9]} 36.
Kf2 {[%clk 0:00:06.1]} 36... Rxe1 {[%clk 0:00:09.1]} 37. Rxe1 {[%clk 0:00:08]}
37... Ne6 {[%clk 0:00:09.5]} 38. Rc1 {[%clk 0:00:08.8]} 38... c5 {[%clk
0:00:08.1]} 39. Ke3 {[%clk 0:00:08.6]} 39... f6 {[%clk 0:00:08.2]} 40. b4 {[%clk
0:00:08.1]} 40... c4 {[%clk 0:00:07.7]} 41. a4 {[%clk 0:00:09]} 41... Rc7 {[%clk
0:00:08.3]} 42. Nc5 {[%clk 0:00:07.7]} 42... Nxc5 {[%clk 0:00:09.7]} 43. bxc5
{[%clk 0:00:09.6]} 43... Rxc5 {[%clk 0:00:11.6]} 44. Kd4 {[%clk 0:00:11.5]}
44... Ra5 {[%clk 0:00:13]} 45. Rb1 {[%clk 0:00:08]} 45... g5 {[%clk 0:00:13.9]}
46. Rb7+ {[%clk 0:00:08.7]} 46... Kg6 {[%clk 0:00:15.1]} 47. Rb4 {[%clk
0:00:05.9]} 47... Kf5 {[%clk 0:00:16.2]} 48. Rb8 {[%clk 0:00:04.4]} 48... Kf4
{[%clk 0:00:14.7]} 49. Rf8 {[%clk 0:00:04.4]} 49... f5 {[%clk 0:00:15.8]} 50.
Rf7 {[%clk 0:00:05.9]} 50... a6 {[%clk 0:00:16.1]} 51. Rf6 {[%clk 0:00:06.7]}
51... Rxa4 {[%clk 0:00:17]} 52. Kxd5 {[%clk 0:00:08.2]} 52... Ra2 {[%clk
0:00:18.2]} 53. Rc6 {[%clk 0:00:08.9]} 53... Rxg2 {[%clk 0:00:19.3]} 54. Rxc4+
{[%clk 0:00:10]} 54... Kxf3 {[%clk 0:00:20.4]} 55. Ke5 {[%clk 0:00:11.9]} 55...
f4 {[%clk 0:00:17.8]} 56. Rc3+ {[%clk 0:00:12.9]} 56... Kf2 {[%clk 0:00:19.1]}
57. Kf5 {[%clk 0:00:14.8]} 57... Rg3 {[%clk 0:00:19.4]} 58. Rc2+ {[%clk
0:00:16]} 58... Kg1 {[%clk 0:00:20.8]} 59. Ke4 {[%clk 0:00:16.8]} 59... f3
{[%clk 0:00:20.5]} 60. Ra2 {[%clk 0:00:18.7]} 60... f2 {[%clk 0:00:21.4]} 0-1

[Event "*** Titled Tuesday Blitz"]
[Site "Chess.com"]
[Date "2018.12.04"]
[Round "1"]
[White "David_Klein"]
[Black "Jenia84"]
[Result "1-0"]
[WhiteElo "2566"]
[BlackElo "2217"]
[TimeControl "180+2"]
[EndTime "13:10:05 PST"]
[Termination "David_Klein won by checkmate"]

1. e4 {[%clk 0:02:52.4]} 1... c5 {[%clk 0:02:59.5]} 2. Nf3 {[%clk 0:02:52.3]}
2... Nc6 {[%clk 0:03:00.3]} 3. Bb5 {[%clk 0:02:52]} 3... g6 {[%clk 0:03:01]} 4.
O-O {[%clk 0:02:52.1]} 4... Bg7 {[%clk 0:03:01.1]} 5. Re1 {[%clk 0:02:52.6]}
5... Nf6 {[%clk 0:03:00.4]} 6. e5 {[%clk 0:02:53.5]} 6... Nd5 {[%clk 0:03:01.3]}
7. Nc3 {[%clk 0:02:54.6]} 7... Nc7 {[%clk 0:02:52.5]} 8. Bxc6 {[%clk 0:02:55.4]}
8... dxc6 {[%clk 0:02:52]} 9. Ne4 {[%clk 0:02:56.3]} 9... b6 {[%clk 0:02:51.5]}
10. d3 {[%clk 0:02:46.7]} 10... O-O {[%clk 0:02:49.7]} 11. h3 {[%clk 0:02:44.4]}
11... Be6 {[%clk 0:02:33.2]} 12. Bg5 {[%clk 0:02:36]} 12... Bd5 {[%clk
0:02:32.3]} 13. Qe2 {[%clk 0:02:32.3]} 13... Ne6 {[%clk 0:02:30.9]} 14. Be3
{[%clk 0:02:30.5]} 14... Bxe4 {[%clk 0:02:27.8]} 15. dxe4 {[%clk 0:02:30.7]}
15... Qc7 {[%clk 0:02:20.8]} 16. c3 {[%clk 0:02:15.3]} 16... Bxe5 {[%clk
0:02:10.2]} 17. Nxe5 {[%clk 0:02:15.3]} 17... Qxe5 {[%clk 0:02:11]} 18. Qg4
{[%clk 0:02:14.4]} 18... h5 {[%clk 0:02:06.7]} 19. Qh4 {[%clk 0:02:00.9]} 19...
Qf6 {[%clk 0:01:57.3]} 20. Qg3 {[%clk 0:01:57.2]} 20... Rfd8 {[%clk 0:01:54.6]}
21. f4 {[%clk 0:01:52.7]} 21... Rd3 {[%clk 0:01:50.7]} 22. f5 {[%clk 0:01:49.9]}
22... Ng7 {[%clk 0:01:49.3]} 23. Rf1 {[%clk 0:01:38.4]} 23... h4 {[%clk
0:01:31.5]} 24. Qf2 {[%clk 0:01:21.6]} 24... gxf5 {[%clk 0:01:26.5]} 25. Qe2
{[%clk 0:01:04.8]} 25... Rad8 {[%clk 0:01:20.9]} 26. exf5 {[%clk 0:01:04.9]}
26... Qe5 {[%clk 0:01:17.4]} 27. Rae1 {[%clk 0:01:04.5]} 27... Qe4 {[%clk
0:00:45.9]} 28. Bg5 {[%clk 0:01:04]} 28... Qxe2 {[%clk 0:00:46.3]} 29. Rxe2
{[%clk 0:01:05.7]} 29... f6 {[%clk 0:00:46.6]} 30. Bxh4 {[%clk 0:01:05.3]} 30...
R8d7 {[%clk 0:00:46.8]} 31. Rff2 {[%clk 0:01:01.1]} 31... Kf7 {[%clk 0:00:46.7]}
32. Kh2 {[%clk 0:01:01.6]} 32... b5 {[%clk 0:00:36.1]} 33. g4 {[%clk 0:01:02.3]}
33... b4 {[%clk 0:00:36.8]} 34. c4 {[%clk 0:01:03.5]} 34... b3 {[%clk
0:00:34.9]} 35. axb3 {[%clk 0:01:02.3]} 35... Rxb3 {[%clk 0:00:35.3]} 36. Bg3
{[%clk 0:01:02.4]} 36... Rd4 {[%clk 0:00:34.3]} 37. Rc2 {[%clk 0:01:02.1]} 37...
Rdd3 {[%clk 0:00:34.8]} 38. Rg2 {[%clk 0:01:02.9]} 38... Ne8 {[%clk 0:00:34.4]}
39. Rcd2 {[%clk 0:01:02]} 39... Nd6 {[%clk 0:00:23.9]} 40. Rxd3 {[%clk
0:00:56.7]} 40... Rxd3 {[%clk 0:00:24]} 41. Rc2 {[%clk 0:00:58.3]} 41... Ne4
{[%clk 0:00:24.3]} 42. Be1 {[%clk 0:00:55.8]} 42... Re3 {[%clk 0:00:24.6]} 43.
Bf2 {[%clk 0:00:45.3]} 43... Nxf2 {[%clk 0:00:20.4]} 44. Rxf2 {[%clk 0:00:47.2]}
44... a5 {[%clk 0:00:20.8]} 45. Kg2 {[%clk 0:00:42.8]} 45... a4 {[%clk
0:00:21.7]} 46. Rd2 {[%clk 0:00:42.6]} 46... Re4 {[%clk 0:00:22.4]} 47. Rc2
{[%clk 0:00:43.6]} 47... Re3 {[%clk 0:00:23.6]} 48. h4 {[%clk 0:00:43.3]} 48...
Kg7 {[%clk 0:00:24.6]} 49. Rd2 {[%clk 0:00:43.2]} 49... Kf7 {[%clk 0:00:25.3]}
50. Rc2 {[%clk 0:00:41.5]} 50... Kg7 {[%clk 0:00:25.5]} 51. Rf2 {[%clk
0:00:23.9]} 51... Re4 {[%clk 0:00:26.2]} 52. Kf3 {[%clk 0:00:25.2]} 52... Rxc4
{[%clk 0:00:27.1]} 53. Re2 {[%clk 0:00:26.7]} 53... Kf7 {[%clk 0:00:26]} 54. g5
{[%clk 0:00:28.1]} 54... Rb4 {[%clk 0:00:26.5]} 55. g6+ {[%clk 0:00:28.3]} 55...
Kf8 {[%clk 0:00:27.7]} 56. Kg3 {[%clk 0:00:27.5]} 56... c4 {[%clk 0:00:17.4]}
57. h5 {[%clk 0:00:28.1]} 57... c3 {[%clk 0:00:17.6]} 58. bxc3 {[%clk
0:00:28.5]} 58... Rc4 {[%clk 0:00:18.2]} 59. h6 {[%clk 0:00:29.2]} 59... Rxc3+
{[%clk 0:00:20.1]} 60. Kg4 {[%clk 0:00:30.1]} 60... Rc4+ {[%clk 0:00:19.9]} 61.
Kh5 {[%clk 0:00:30.6]} 61... Rc1 {[%clk 0:00:21.8]} 62. g7+ {[%clk 0:00:31.6]}
62... Kg8 {[%clk 0:00:22.6]} 63. Rxe7 {[%clk 0:00:31]} 63... Rh1+ {[%clk
0:00:24.5]} 64. Kg6 {[%clk 0:00:32]} 64... Rg1+ {[%clk 0:00:25.8]} 65. Kxf6
{[%clk 0:00:33.3]} 65... Kh7 {[%clk 0:00:25.3]} 66. Re8 {[%clk 0:00:32.6]} 66...
a3 {[%clk 0:00:24]} 67. Rh8# {[%clk 0:00:33.3]} 1-0